fUSD/lending_fUSD_20240425
["ID","MTS","AMOUNT","RATE_DAILY","PERIOD"]
[323512147,1714060259931,-590.14,0.00011815,2]
[323512148,1714060259941,-500.0,0.00011815,2]
[323512149,1714060259950,-500.0,0.00011815,2]
[323512150,1714060259960,-500.0,0.00011815,2]
[323512151,1714060259969,-613.13,0.00011815,2]
[323512152,1714060259978,-6361.02,0.00011815,2]
[323512153,1714060259987,-610.2,0.00011815,2]
[323512154,1714060259999,-500.0,0.00011815,2]
[323512155,1714060260008,-4125.24,0.00011815,2]
[323512156,1714060260017,-4677.11,0.00011815,2]
[323512157,1714060260026,-906.13,0.00011815,2]
[323512158,1714060260035,-642.74,0.00011815,2]
[323512159,1714060260045,-1906.6,0.00011815,2]
[323512160,1714060260055,-500.0,0.00011815,2]
[323512161,1714060260065,-505.18,0.00011815,2]
[323512162,1714060260074,-500.0,0.00011815,2]
[323512163,1714060260084,-2378.51,0.00011815,2]
[323512164,1714060260093,-721.8,0.00011815,2]
[323512165,1714060260104,-500.0,0.00011815,2]
[323512166,1714060260116,-500.0,0.00011815,2]
[323512167,1714060260126,-500.0,0.00011815,2]
[323512168,1714060260136,-500.0,0.00011815,2]
[323512169,1714060260145,-713.06,0.00011815,2]
[323512170,1714060260155,-2786.63034706,0.00011815,2]
[323512171,1714060260165,-1070.50799097,0.00011816,3]
[323512172,1714060260175,-897.19,0.00011816,2]
[323512173,1714060260184,-540.6,0.00011816,2]
[323512174,1714060260197,-520.48,0.00011816,2]
[323512175,1714060260207,-500.0,0.00011816,2]
[323512176,1714060260217,-535.02,0.00011816,2]
[323512177,1714060260227,-500.0,0.00011816,2]
[323512178,1714060260237,-500.0,0.00011816,2]
[323512179,1714060260248,-596.72,0.00011816,2]
[323512180,1714060260258,-500.0,0.00011816,2]
[323512181,1714060260268,-539.3,0.00011816,2]
[323512182,1714060260278,-655.81,0.00011816,2]
[323512183,1714060260288,-500.0,0.00011816,2]
[323512184,1714060260297,-500.0,0.00011816,2]
[323512185,1714060260307,-500.0,0.00011816,2]
[323512186,1714060260317,-500.0,0.00011816,2]
[323512187,1714060260326,-500.0,0.00011816,2]
[323512188,1714060260336,-500.0,0.00011816,2]
[323512189,1714060260346,-500.0,0.00011816,2]
[323512190,1714060260355,-500.0,0.00011816,2]
[323512191,1714060260365,-500.0,0.00011816,2]
[323512192,1714060260376,-450.34,0.00011816,2]
[323512193,1714060260386,-500.0,0.00011816,2]
[323512194,1714060260395,-500.0,0.00011816,2]
[323512195,1714060260405,-500.0,0.00011816,2]
[323512196,1714060260415,-500.0,0.00011816,2]
[323512197,1714060260424,-500.0,0.00011816,2]
[323512198,1714060260434,-856.62,0.00011816,2]
[323512199,1714060260444,-500.0,0.00011816,2]
[323512200,1714060260455,-500.0,0.00011816,2]
[323512201,1714060260464,-500.0,0.00011816,2]
[323512202,1714060260474,-500.0,0.00011816,2]
[323512203,1714060260484,-150.0,0.00011816,2]
[323512204,1714060260494,-500.0,0.00011816,2]
[323512205,1714060260504,-500.0,0.00011816,2]
[323512206,1714060260513,-500.0,0.00011816,2]
[323512207,1714060260523,-500.0,0.00011816,2]
[323512208,1714060260532,-815.64,0.00011816,2]
[323512209,1714060260542,-500.0,0.00011816,2]
[323512210,1714060260551,-500.0,0.00011816,2]
[323512211,1714060260561,-500.0,0.00011816,2]
[323512212,1714060260571,-500.0,0.00011816,2]
[323512213,1714060260580,-500.0,0.00011816,2]
[323512214,1714060260590,-639.78,0.00011816,2]
[323512215,1714060260599,-500.0,0.00011816,2]
[323512216,1714060260608,-475.2,0.00011816,2]
[323512217,1714060260618,-500.0,0.00011816,2]
[323512218,1714060260627,-526.94652242,0.00011816,2]
[323512219,1714060260637,-693.34,0.00011816,2]
[323512220,1714060260646,-500.0,0.00011816,2]
[323512221,1714060260656,-467.87,0.00011816,2]
[323512222,1714060260666,-500.0,0.00011816,2]
[323512223,1714060260675,-500.0,0.00011816,2]
[323512224,1714060260684,-500.0,0.00011816,2]
[323512225,1714060260694,-500.0,0.00011816,2]
[323512226,1714060260704,-500.0,0.00011816,2]
[323512227,1714060260713,-16171.62,0.00011816,2]
[323512228,1714060260723,-576.72,0.00011816,2]
[323512229,1714060260732,-1957.24,0.00011816,2]
[323512230,1714060260743,-450.85159659,0.00011816,2]
[323512231,1714060260753,-500.0,0.00011816,2]
[323512232,1714060260763,-767.19,0.00011816,2]
[323512233,1714060260773,-590.59,0.00011816,2]
[323512234,1714060260782,-719.05,0.00011816,2]
[323512235,1714060260792,-628.9,0.00011816,2]
[323512236,1714060260801,-500.0,0.00011816,2]
[323512237,1714060260811,-716.78,0.00011816,2]
[323512238,1714060260821,-500.0,0.00011816,2]
[323512239,1714060260830,-1431.93,0.00011816,2]
[323512240,1714060260839,-500.0,0.00011816,2]
[323512241,1714060260849,-1807.23,0.00011816,2]
[323512242,1714060260858,-509.15,0.00011816,2]
[323512243,1714060260867,-500.0,0.00011816,2]
[323512244,1714060260877,-500.0,0.00011816,2]
[323512245,1714060260886,-500.0,0.00011816,2]
[323512246,1714060260896,-28280.56,0.00011816,2]
[323512247,1714060260905,-500.0,0.00011816,2]
[323512248,1714060260914,-2917.4,0.00011816,2]
[323512249,1714060260924,-500.0,0.00011816,2]
[323512250,1714060260934,-810.12,0.00011816,2]
[323512251,1714060260943,-468.97059649,0.00011816,2]
[323512252,1714060260953,-825.68,0.00011816,2]
[323512253,1714060260963,-500.0,0.00011816,2]
[323512254,1714060260972,-500.0,0.00011816,2]
[323512255,1714060260982,-577.92,0.00011816,2]
[323512256,1714060260993,-4602.93,0.00011816,2]
[323512257,1714060261003,-500.0,0.00011816,2]
[323512258,1714060261012,-500.0,0.00011816,2]
[323512259,1714060261022,-500.0,0.00011816,2]
[323512260,1714060261031,-500.0,0.00011816,2]
[323512261,1714060261041,-500.0,0.00011816,2]
[323512262,1714060261051,-500.0,0.00011816,2]
[323512263,1714060261060,-500.0,0.00011816,2]
[323512264,1714060261069,-500.0,0.00011816,2]
[323512265,1714060261078,-2207.86,0.00011816,2]
[323512266,1714060261088,-1095.76,0.00011816,2]
[323512267,1714060261098,-1600.93,0.00011816,2]
[323512268,1714060261107,-511.99,0.00011816,2]
[323512269,1714060261119,-500.0,0.00011816,2]
[323512270,1714060261130,-3217.68,0.00011816,2]
[323512271,1714060261139,-500.0,0.00011816,2]
[323512272,1714060261152,-500.0,0.00011816,2]
[323512273,1714060261163,-823.38,0.00011816,2]
[323512274,1714060261173,-1140.12,0.00011816,2]
[323512275,1714060261182,-3439.52,0.00011816,2]
[323512276,1714060261193,-500.0,0.00011816,2]
[323512277,1714060261202,-561.31,0.00011816,2]
[323512278,1714060261212,-500.0,0.00011816,2]
[323512279,1714060261222,-500.0,0.00011816,2]
[323512280,1714060261232,-500.0,0.00011816,2]
[323512281,1714060261244,-537.33,0.00011816,2]
[323512282,1714060261254,-1058.41,0.00011816,2]
[323512283,1714060261264,-500.0,0.00011816,2]
[323512284,1714060261273,-636.28,0.00011816,2]
[323512285,1714060261283,-662.57,0.00011816,2]
[323512286,1714060261293,-500.0,0.00011816,2]
[323512287,1714060261302,-507.86,0.00011816,2]
[323512288,1714060261312,-500.0,0.00011816,2]
[323512289,1714060261321,-500.0,0.00011816,2]
[323512290,1714060261331,-750.89,0.00011816,2]
[323512291,1714060261341,-512.07974688,0.00011816,2]
[323512292,1714060261351,-500.0,0.00011816,2]
[323512293,1714060261361,-500.0,0.00011816,2]
[323512294,1714060261371,-500.0,0.00011816,2]
[323512295,1714060261381,-2306.09,0.00011816,2]
[323512296,1714060261391,-500.0,0.00011816,2]
[323512297,1714060261400,-752.47,0.00011816,2]
[323512298,1714060261410,-500.0,0.00011816,2]
[323512299,1714060261419,-1706.92,0.00011816,2]
[323512300,1714060261429,-500.0,0.00011816,2]
[323512301,1714060261439,-500.0,0.00011816,2]
[323512302,1714060261449,-500.0,0.00011816,2]
[323512303,1714060261458,-1945.0,0.00011816,2]
[323512304,1714060261469,-1464.21,0.00011816,2]
[323512305,1714060261479,-500.0,0.00011816,2]
[323512306,1714060261488,-500.0,0.00011816,2]
[323512307,1714060261503,-1313.42,0.00011816,2]
[323512308,1714060261513,-657.74,0.00011816,2]
[323512309,1714060261522,-1936.87,0.00011816,2]
[323512310,1714060261531,-2744.8,0.00011816,2]
[323512311,1714060261541,-500.0,0.00011816,2]
[323512312,1714060261551,-520.52,0.00011816,2]
[323512313,1714060261560,-500.0,0.00011816,2]
[323512314,1714060261570,-500.0,0.00011816,2]
[323512315,1714060261581,-500.0,0.00011816,2]
[323512316,1714060261590,-500.0,0.00011816,2]
[323512317,1714060261600,-582.33,0.00011816,2]
[323512318,1714060261610,-500.0,0.00011816,2]
[323512319,1714060261619,-500.0,0.00011816,2]
[323512320,1714060261629,-500.0,0.00011816,2]
[323512321,1714060261639,-500.0,0.00011816,2]
[323512322,1714060261649,-563.72,0.00011816,2]
[323512323,1714060261658,-500.0,0.00011816,2]
[323512324,1714060261668,-500.0,0.00011816,2]
[323512325,1714060261677,-4921.23,0.00011816,2]
[323512326,1714060261686,-500.0,0.00011816,2]
[323512327,1714060261696,-500.0,0.00011816,2]
[323512328,1714060261706,-1489.14,0.00011816,2]
[323512329,1714060261715,-1405.96,0.00011816,2]
[323512330,1714060261725,-500.0,0.00011816,2]
[323512331,1714060261734,-500.0,0.00011816,2]
[323512332,1714060261745,-500.0,0.00011816,2]
[323512333,1714060261755,-500.0,0.00011816,2]
[323512334,1714060261764,-672.8,0.00011816,2]
[323512335,1714060261774,-509.42,0.00011816,2]
[323512336,1714060261783,-718.59,0.00011816,2]
[323512337,1714060261793,-613.92,0.00011816,2]
[323512338,1714060261803,-500.0,0.00011816,2]
[323512339,1714060261813,-690.2,0.00011816,2]
[323512340,1714060261823,-500.0,0.00011816,2]
[323512341,1714060261833,-500.0,0.00011816,2]
[323512342,1714060261843,-500.0,0.00011816,2]
[323512343,1714060261853,-11579.02,0.00011816,2]
[323512344,1714060261863,-896.53,0.00011816,2]
[323512345,1714060261873,-836.18,0.00011816,2]
[323512346,1714060261882,-500.0,0.00011817,2]
[323512347,1714060261892,-500.0,0.00011817,2]
[323512348,1714060261902,-500.0,0.00011817,2]
[323512349,1714060261912,-500.0,0.00011817,2]
[323512350,1714060261921,-500.0,0.00011817,2]
[323512351,1714060261932,-500.0,0.00011817,2]
[323512352,1714060261942,-500.0,0.00011817,2]
[323512353,1714060261952,-500.0,0.00011817,2]
[323512354,1714060261963,-500.0,0.00011817,2]
[323512355,1714060261973,-500.0,0.00011817,2]
[323512356,1714060261983,-500.0,0.00011817,2]
[323512357,1714060261995,-500.0,0.00011817,2]
[323512358,1714060262006,-500.0,0.00011817,2]
[323512359,1714060262015,-500.0,0.00011817,2]
[323512360,1714060262025,-500.0,0.00011817,2]
[323512361,1714060262035,-500.0,0.00011817,2]
[323512362,1714060262045,-500.0,0.00011817,2]
[323512363,1714060262054,-500.0,0.00011817,2]
[323512364,1714060262064,-500.0,0.00011817,2]
[323512365,1714060262075,-500.0,0.00011817,2]
[323512366,1714060262084,-500.0,0.00011817,2]
[323512367,1714060262094,-500.0,0.00011817,2]
[323512368,1714060262105,-500.0,0.00011817,2]
[323512369,1714060262116,-500.0,0.00011817,2]
[323512370,1714060262128,-500.0,0.00011817,2]
[323512371,1714060262138,-500.0,0.00011817,2]
[323512372,1714060262147,-595.49,0.00011817,2]
[323512373,1714060262158,-500.0,0.00011817,2]
[323512374,1714060262171,-627.12,0.00011817,2]
[323512375,1714060262180,-500.0,0.00011817,2]
[323512376,1714060262190,-500.0,0.00011817,2]
[323512377,1714060262199,-525.06,0.00011817,2]
[323512378,1714060262209,-500.0,0.00011817,2]
[323512379,1714060262219,-505.17,0.00011817,2]
[323512380,1714060262229,-500.0,0.00011817,2]
[323512381,1714060262241,-500.0,0.00011817,2]
[323512382,1714060262250,-500.0,0.00011817,2]
[323512383,1714060262420,-500.0,0.00011817,2]
[323512384,1714060262430,-500.0,0.00011817,2]
[323512385,1714060262440,-1025.83,0.00011817,2]
[323512386,1714060262449,-500.0,0.00011817,2]
[323512387,1714060262458,-500.0,0.00011817,2]
[323512388,1714060262467,-606.66,0.00011817,2]
[323512389,1714060262476,-662.43,0.00011817,2]
[323512390,1714060262486,-500.0,0.00011817,2]
[323512391,1714060262500,-500.0,0.00011817,2]
[323512392,1714060262510,-500.0,0.00011817,2]
[323512393,1714060262519,-500.0,0.00011817,2]
[323512394,1714060262528,-500.0,0.00011817,2]
[323512395,1714060262538,-500.0,0.00011817,2]
[323512396,1714060262547,-528.16,0.00011817,2]
[323512397,1714060262557,-500.0,0.00011817,2]
[323512398,1714060262566,-500.0,0.00011817,2]
[323512399,1714060262575,-500.0,0.00011817,2]
[323512400,1714060262585,-500.0,0.00011817,2]
[323512401,1714060262594,-500.0,0.00011817,2]
[323512402,1714060262603,-500.0,0.00011817,2]
[323512403,1714060262612,-515.45,0.00011817,2]
[323512404,1714060262622,-743.56,0.00011817,2]
[323512405,1714060262631,-500.0,0.00011817,2]
[323512406,1714060262640,-500.0,0.00011817,2]
[323512407,1714060262649,-1177.91,0.00011817,2]
[323512408,1714060262658,-500.0,0.00011817,2]
[323512409,1714060262667,-500.0,0.00011817,2]
[323512410,1714060262677,-500.0,0.00011817,2]
[323512411,1714060262686,-500.0,0.00011817,2]
[323512412,1714060262695,-500.0,0.00011817,2]
[323512413,1714060262704,-500.0,0.00011817,2]
[323512414,1714060262713,-796.23,0.00011817,2]
[323512415,1714060262722,-500.0,0.00011817,2]
[323512416,1714060262732,-709.05,0.00011817,2]
[323512417,1714060262742,-500.0,0.00011817,2]
[323512418,1714060262751,-500.0,0.00011817,2]
[323512419,1714060262760,-974.66,0.00011817,2]
[323512420,1714060262769,-633.17,0.00011817,2]
[323512421,1714060262778,-500.0,0.00011817,2]
[323512422,1714060262788,-500.0,0.00011817,2]
[323512423,1714060262797,-500.0,0.00011817,2]
[323512424,1714060262806,-500.0,0.00011817,2]
[323512425,1714060262815,-519.43,0.00011817,2]
[323512426,1714060262824,-500.0,0.00011817,2]
[323512427,1714060262833,-500.0,0.00011817,2]
[323512428,1714060262843,-500.0,0.00011817,2]
[323512429,1714060262852,-500.0,0.00011817,2]
[323512430,1714060262862,-530.13,0.00011817,2]
[323512431,1714060262872,-500.0,0.00011817,2]
[323512432,1714060262881,-500.0,0.00011817,2]
[323512433,1714060262890,-500.0,0.00011817,2]
[323512434,1714060262899,-500.0,0.00011817,2]
[323512435,1714060262909,-500.0,0.00011817,2]
[323512436,1714060262918,-177.8823802,0.00011817,2]
[323512437,1714060262927,-500.0,0.00011817,2]
[323512438,1714060262936,-500.0,0.00011817,2]
[323512439,1714060262945,-500.0,0.00011817,2]
[323512440,1714060262954,-500.0,0.00011817,2]
[323512441,1714060262964,-500.0,0.00011817,2]
[323512442,1714060262973,-500.0,0.00011817,2]
[323512443,1714060262983,-500.0,0.00011817,2]
[323512444,1714060262993,-500.0,0.00011817,2]
[323512445,1714060263002,-364.4073463,0.00011817,2]
[323512446,1714060263012,-500.0,0.00011817,2]
[323512447,1714060263021,-3419.75,0.00011817,2]
[323512448,1714060263031,-500.0,0.00011817,2]
[323512449,1714060263040,-500.0,0.00011817,2]
[323512450,1714060263050,-500.0,0.00011817,2]
[323512451,1714060263060,-500.0,0.00011817,2]
[323512452,1714060263070,-500.0,0.00011817,2]
[323512453,1714060263079,-893.92,0.00011817,2]
[323512454,1714060263089,-500.0,0.00011817,2]
[323512455,1714060263098,-500.0,0.00011817,2]
[323512456,1714060263108,-500.0,0.00011817,2]
[323512457,1714060263120,-500.0,0.00011817,2]
[323512458,1714060263130,-500.0,0.00011817,2]
[323512459,1714060263139,-500.0,0.00011817,2]
[323512460,1714060263150,-500.0,0.00011817,2]
[323512461,1714060263162,-500.0,0.00011817,2]
[323512462,1714060263171,-500.0,0.00011817,2]
[323512463,1714060263181,-500.0,0.00011817,2]
[323512464,1714060263192,-500.0,0.00011817,2]
[323512465,1714060263201,-500.0,0.00011817,2]
[323512466,1714060263210,-500.0,0.00011817,2]
[323512467,1714060263219,-500.0,0.00011817,2]
[323512468,1714060263229,-500.0,0.00011817,2]
[323512469,1714060263239,-500.0,0.00011817,2]
[323512470,1714060263251,-500.0,0.00011817,2]
[323512471,1714060263261,-500.0,0.00011817,2]
[323512472,1714060263270,-793.21,0.00011817,2]
[323512473,1714060263279,-534.76,0.00011817,2]
[323512474,1714060263288,-500.0,0.00011817,2]
[323512475,1714060263297,-500.0,0.00011817,2]
[323512476,1714060263306,-191.54,0.00011817,2]
[323512477,1714060263315,-655.42,0.00011817,2]
[323512478,1714060263324,-500.0,0.00011817,2]
[323512479,1714060263333,-500.0,0.00011817,2]
[323512480,1714060263342,-500.0,0.00011817,2]
[323512481,1714060263352,-500.0,0.00011817,2]
[323512482,1714060263361,-500.0,0.00011817,2]
[323512483,1714060263370,-500.0,0.00011817,2]
[323512484,1714060263404,-1829.3,0.00011817,2]
[323512485,1714060263413,-500.0,0.00011817,2]
[323512486,1714060263423,-500.0,0.00011817,2]
[323512487,1714060263433,-500.0,0.00011817,2]
[323512488,1714060263443,-500.0,0.00011817,2]
[323512489,1714060263453,-500.0,0.00011817,2]
[323512490,1714060263463,-500.0,0.00011817,2]
[323512491,1714060263473,-500.0,0.00011817,2]
[323512492,1714060263482,-500.0,0.00011817,2]
[323512493,1714060263493,-5311.09,0.00011817,2]
[323512494,1714060263503,-500.0,0.00011817,2]
[323512495,1714060263513,-1639.63,0.00011817,2]
[323512496,1714060263523,-6842.7,0.00011817,2]
[323512497,1714060263534,-500.0,0.00011817,2]
[323512498,1714060263543,-500.0,0.00011817,2]
[323512499,1714060263552,-500.0,0.00011818,2]
[323512500,1714060263562,-500.0,0.00011821,2]
[323512501,1714060263572,-150.0,0.00011832,2]
[323512502,1714060263582,-1478.33013836,0.00011834,2]
[323512503,1714060263591,-665.0,0.0001186,2]
[323512504,1714060263601,-2009.62163,0.0001188,2]
[323512505,1714060263611,-238.25600323,0.00011899,2]
[323512506,1714060263621,-500.0,0.00011899,2]
[323512507,1714060263631,-500.0,0.00011899,2]
[323512508,1714060263641,-1478.33013836,0.000119,2]
[323512509,1714060263649,-390.67622212,0.000119,2]
[323512510,1714060263660,-500.0,0.00011904,2]
[323512511,1714060263669,-1297.69186289,0.00011975,2]
[323512512,1714060263679,-2357.76557745,0.00011998,2]
[323512513,1714060263688,-313.70598498,0.00011998,2]
[323512514,1714060263697,-203.86541058,0.00011998,2]
[323512515,1714060263707,-477.17397627,0.00011998,2]
[323512516,1714060263716,-343.26553462,0.00011998,2]
[323512517,1714060263725,-408.49724038,0.00011998,2]
[323512518,1714060263734,-487.22450388,0.00011998,2]
[323512519,1714060263746,-2121.75343201,0.00011999,2]
[323512520,1714060263756,-162.12456104,0.00011999,2]
[323512521,1714060263765,-4997.72257115,0.00011999,2]
[323512522,1714060263776,-220063.79106234,0.00012,2]
[323512523,1714060264508,-195.17,0.00010994,2]
[323512524,1714060264518,-96.27554907,0.00011542,2]
[323512525,1714060264572,-500.0,0.00010995,2]
[323512526,1714060264581,-308.77948697,0.00011542,2]
[323512527,1714060264593,-1577.89496396,0.00011542,2]
[323512528,1714060264604,-500.0,0.00011816,2]
[323512529,1714060264613,-1277.91257505,0.00011816,2]
[323512530,1714060264651,-705.03742495,0.00011816,2]
[323512531,1714060264661,-306766.81673594,0.00012,2]
[323512532,1714060265295,-250.61854866,0.00012,2]
[323512533,1714060265320,-533.34082628,0.00012,2]
[323512534,1714060265332,-15034.33035745,0.00012,2]
[323512535,1714060265345,-15117.55865665,0.00012,2]
[323512536,1714060265356,-1754.91734668,0.00012,2]
[323512537,1714060265380,-3584.88042418,0.00012,2]
[323512538,1714060265391,-123244.4818829,0.00012,2]
[323512539,1714060265402,-620.28510931,0.00012,2]
[323512540,1714060265421,-1236.2,0.00012,2]
[323512541,1714060265432,-1308.00000413,0.00012,2]
[323512542,1714060265448,-397.00005046,0.00012,2]
[323512543,1714060265460,-5429.12216,0.00012,2]
[323512544,1714060265472,-379.84138792,0.00012,2]
[323512545,1714060266072,-363.85220486,0.00010993,2]
[323512546,1714060266081,-500.0,0.00010994,2]
[323512547,1714060266090,-266.16784443,0.00011269,2]
[323512548,1714060266103,-233.83215557,0.00011269,2]
[323512549,1714060266112,-151.07839357,0.00011543,2]
[323512550,1714060266124,-95.66720833,0.00011814,2]
[323512551,1714060266135,-399.00181567,0.00011814,2]
[323512552,1714060266149,-4368.63697817,0.00012,2]
[323512553,1714060266163,-3200.8,0.00012,2]
[323512558,1714060558571,336.36,8.28e-05,2]
[323512559,1714060640286,5326.8593589,8.28e-05,2]
[323512560,1714060837938,15476.57911974,8.28e-05,2]
[323512561,1714061050892,330.08,8.219e-05,2]
[323512562,1714061410587,844.84698669,8.219e-05,2]
[323512563,1714061410609,18832.36008514,8.219e-05,2]
[323512564,1714061412162,20172.44350271,8.219e-05,2]
[323512565,1714061415534,1374.60563136,8.219e-05,2]
[323512566,1714061417352,288.4630602,8.219e-05,2]
[323512567,1714061418200,399.27306284,8.219e-05,2]
[323512568,1714061419188,993.25231044,8.219e-05,2]
[323512569,1714061421446,559.66150284,8.219e-05,2]
[323512570,1714061422201,155.0,8.219e-05,2]
[323512571,1714061423054,1471.71240548,8.219e-05,2]
[323512578,1714061431473,170.0216552,8.219e-05,2]
[323512581,1714061431490,-162.13441227,9.65e-05,2]
[323512583,1714061431502,-973.1758222,9.651e-05,2]
[323512585,1714061431513,-1661.1859856,9.651e-05,2]
[323512588,1714061431549,-3329.05,9.651e-05,2]
[323512590,1714061431562,-2536.6950022,9.651e-05,2]
[323512592,1714061431576,-692.97104432,9.651e-05,2]
[323512594,1714061431587,-956.96982121,9.651e-05,2]
[323512595,1714061431600,-9052.87316541,9.651e-05,2]
[323512596,1714061431612,-241.87162573,9.651e-05,2]
[323512597,1714061431621,-444.68589121,9.651e-05,2]
[323512598,1714061431630,-408.53368839,9.651e-05,2]
[323512599,1714061431639,-487.44544673,9.652e-05,2]
[323512600,1714061431652,-155.0,9.652e-05,2]
[323512601,1714061431662,-206.8225704,9.652e-05,2]
[323512602,1714061431671,-1061.01702893,9.653e-05,2]
[323512603,1714061431681,-289.78456298,9.654e-05,2]
[323512604,1714061431699,-87.14740439,9.654e-05,2]
[323512605,1714061431708,-216.09764885,9.654e-05,2]
[323512606,1714061431718,-255.48323707,9.655e-05,2]
[323512607,1714061431727,-7342.96084069,9.657e-05,2]
[323512608,1714061431736,-150.0,9.661e-05,2]
[323512609,1714061431745,-532.89332388,9.669e-05,2]
[323512610,1714061431754,-325.65,9.677e-05,2]
[323512611,1714061431763,-1579.1,9.733e-05,2]
[323512612,1714061431772,-507.71,9.914e-05,2]
[323512613,1714061431782,-399.56427023,9.947e-05,2]
[323512614,1714061431791,-1873.38589662,9.956e-05,2]
[323512615,1714061431800,-42449.08,9.957e-05,2]
[323512616,1714061431809,-24.82997015,9.957e-05,2]
[323512617,1714061431828,-166.70002985,9.957e-05,2]
[323512618,1714061431837,-1638.53,0.0001,2]
[323512619,1714061431846,-1859.59848359,0.0001,2]
[323512620,1714061431857,-0.72151641,0.0001,2]
[323512621,1714061431866,-159.56,0.00010034,2]
[323512622,1714061431876,-604.77,0.00010151,2]
[323512623,1714061431886,-89.80920419,0.00010309,2]
[323512624,1714061431904,-554.58560878,0.00010309,2]
[323512625,1714061431915,-469.0,0.00010309,2]
[323512626,1714061431927,-3298.91128703,0.00010309,2]
[323512627,1714061431936,-260.96563303,0.00010384,2]
[323512628,1714061431946,-787.34412016,0.00010408,2]
[323512629,1714061431955,-3100.0,0.0001041,2]
[323512630,1714061431965,-330.08,0.00010467,2]
[323512631,1714061431974,-210.0,0.00010627,2]
[323512632,1714061431983,-325.65,0.00010887,2]
[323512633,1714061431993,-5547.56885349,0.00010893,2]
[323512634,1714061432002,-10000.0,0.00010894,2]
[323512635,1714061432012,-1000.0,0.000109,2]
[323512636,1714061432021,-1000.0,0.000109,2]
[323512637,1714061432030,-1000.0,0.000109,2]
[323512638,1714061432039,-1000.0,0.000109,2]
[323512639,1714061432049,-1000.0,0.000109,2]
[323512640,1714061432058,-1000.0,0.000109,2]
[323512641,1714061432067,-1000.0,0.000109,2]
[323512642,1714061432077,-1000.0,0.000109,2]
[323512643,1714061432087,-7591.08505196,0.00010991,2]
[323512644,1714061432096,-326.52041268,0.00010991,2]
[323512645,1714061432108,-305.74958732,0.00010991,2]
[323512646,1714061432117,-1188.36,0.00010991,2]
[323512647,1714061432125,-132.61176566,0.00010991,2]
[323512648,1714061432136,-367.38823434,0.00010991,2]
[323512649,1714061432148,-195.11139706,0.00010991,2]
[323512650,1714061432159,-1030.63860294,0.00010991,2]
[323512651,1714061432168,-638.32,0.00010991,2]
[323512652,1714061432177,-500.0,0.00010991,2]
[323512653,1714061432185,-500.0,0.00010991,2]
[323512654,1714061432194,-500.0,0.00010991,2]
[323512655,1714061432203,-762.39,0.00010991,2]
[323512656,1714061432212,-594.15,0.00010991,2]
[323512657,1714061432221,-215.80135706,0.00010991,2]
[323512658,1714061433243,1374.60563136,8.219e-05,2]
[323512688,1714061437553,-404.43856414,0.00010991,2]
[323512696,1714061437600,-2046.3775178,0.00010991,2]
[323512698,1714061437614,-740.492561,0.00010991,2]
[323512700,1714061437625,-6590.6,0.00010991,2]
[323512702,1714061437636,-500.0,0.00010991,2]
[323512705,1714061437646,-500.0,0.00010991,2]
[323512707,1714061437658,-500.0,0.00010991,2]